bitfinex/quotes_SOLUSD_20220306
["timestamp","ask_amount","ask_price","bid_price","bid_amount"]
[1646573510245,3.10199894,87.86,87.804,52.65027465]
[1646573510446,3.10199894,87.861,87.804,52.65027465]
[1646573510846,3.10199894,87.86,87.804,52.65027465]
[1646573511044,3.10199894,87.861,87.804,52.65027465]
[1646573511267,20.19469894,87.86,87.804,52.65027465]
[1646573511464,9.33095401,87.859,87.803,24.0892]
[1646573511667,3.10199894,87.858,87.803,24.0892]
[1646573511972,6.22895507,87.868,87.803,24.0892]
[1646573511973,3.10199894,87.854,87.803,24.0892]
[1646573512165,3.10199894,87.853,87.803,24.0892]
[1646573512365,58.57317021,87.852,87.803,24.0892]
[1646573512566,58.57317021,87.852,87.788,55.21793883]
[1646573512567,17.0965,87.84,87.788,55.21793883]
[1646573512865,17.0965,87.84,87.773,5.692]
[1646573513666,17.0965,87.84,87.774,61.41471127]
[1646573514472,6.23006365,87.839,87.774,61.41471127]
[1646573514666,61.36578277,87.838,87.774,61.41471127]
[1646573515068,6.23025737,87.837,87.774,61.41471127]
[1646573517370,114.1,87.829,87.774,61.41471127]
[1646573517570,0.39911401,87.827,87.773,5.692]
[1646573517770,114.53168923,87.825,87.773,5.692]
[1646573517971,114.1,87.823,87.773,5.692]
[1646573518173,114.1,87.821,87.773,5.692]
[1646573518372,0.46730141,87.82,87.773,5.692]
[1646573518572,17.1024,87.81,87.773,5.692]
[1646573520778,3.10199894,87.83,87.774,63.66095635]
[1646573520975,6.23102646,87.835,87.774,63.66095635]
[1646573521178,3.10199894,87.845,87.774,63.66095635]
[1646573521379,3.10199894,87.851,87.775,49.69155257]
[1646573521575,3.10199894,87.851,87.776,24.1154]
[1646573521775,56.53854972,87.85,87.78,17.0913]
[1646573521975,6.23102646,87.849,87.776,24.1154]
[1646573522375,5.50329121,87.847,87.776,24.1154]
[1646573522578,120.33102646,87.846,87.776,24.1154]
[1646573522776,6.23102646,87.845,87.776,24.1154]
[1646573523176,17.0968,87.84,87.776,24.1154]
[1646573523778,17.0968,87.84,87.777,46.60159765]
[1646573524176,114.1,87.839,87.775,2.83613526]
[1646573524377,0.55663209,87.837,87.773,5.692]
[1646573524578,0.55663209,87.818,87.773,5.692]
[1646573524780,0.55663209,87.827,87.773,5.692]
[1646573524977,0.55663209,87.825,87.773,5.692]
[1646573525178,57.56936809,87.825,87.773,5.692]
[1646573525378,57.012736,87.825,87.773,5.692]
[1646573526079,17.1003,87.82,87.773,5.692]
[1646573527584,114.1,87.819,87.773,5.692]
[1646573527787,4.80202768,87.819,87.773,5.692]
[1646573528084,17.1024,87.81,87.773,5.692]
[1646573528585,49.54244294,87.809,87.773,5.692]
[1646573536191,3.10199894,87.828,87.773,5.692]
[1646573536391,3.10199894,87.828,87.774,2.83613526]
[1646573536595,6.22988823,87.843,87.775,114.1]
[1646573536793,3.10199894,87.858,87.776,160.0648]
[1646573536991,3.10199894,87.869,87.776,189.87405126]
[1646573537193,60.33027339,87.88,87.778,114.1]
[1646573537392,6.22988823,87.879,87.783,114.1]
[1646573537794,6.22988823,87.879,87.784,26.973116]
[1646573537993,6.22988823,87.879,87.784,29.80925126]
[1646573538193,5.68798529,87.869,87.782,51.0000959]
[1646573538393,17.0962,87.85,87.782,51.0000959]
[1646573538694,17.0962,87.85,87.776,45.9648]
[1646573538894,3.10199894,87.861,87.783,2.83613526]
[1646573539094,22.6915,87.868,87.783,2.83613526]
[1646573539494,6.22814095,87.867,87.783,2.83613526]
[1646573539694,51.92764667,87.866,87.784,63.87190514]
[1646573539895,6.22814095,87.865,87.785,114.1]
[1646573540100,6.22814095,87.865,87.8,17.0871]
[1646573540295,6.22814095,87.865,87.801,56.25069626]
[1646573540795,6.22814095,87.865,87.801,59.08683152]
[1646573541195,48.82564773,87.866,87.81,17.0871]
[1646573541596,3.10199894,87.885,87.811,2.83613526]
[1646573541797,3.10199894,87.888,87.811,2.83613526]
[1646573542196,3.10199894,87.891,87.811,2.83613526]
[1646573542497,3.10199894,87.895,87.83,17.0842]
[1646573542700,57.17640533,87.895,87.831,183.52339504]
[1646573542896,6.22725896,87.894,87.831,186.3595303]
[1646573543096,6.22725896,87.894,87.831,183.52339504]
[1646573543298,6.22725896,87.894,87.832,2.83613526]
[1646573543497,3.10199894,87.908,87.85,17.0769]
[1646573543697,3.10199894,87.924,87.85,17.0769]
[1646573543896,17.4755,87.931,87.833,23.92052946]
[1646573543897,17.4755,87.931,87.851,25.38933526]
[1646573544297,6.22460888,87.93,87.852,2.83613526]
[1646573544497,62.00197315,87.929,87.853,46.0673967]
[1646573544697,6.22460888,87.928,87.871,57.48563874]
[1646573545202,6.22460888,87.928,87.852,2.83613526]
[1646573545599,6.22460888,87.928,87.86,17.0786]
[1646573545799,62.00197315,87.929,87.86,17.0786]
[1646573545999,3.10199894,87.953,87.86,40.99912946]
[1646573546203,3.10199894,87.953,87.861,29.65263343]
[1646573546403,3.10199894,87.982,87.861,112.99003693]
[1646573546600,3.10199894,88.014,87.881,114.1]
[1646573546802,3.10199894,88.021,87.881,182.82]
[1646573547000,54.81379164,87.995,87.883,114.1]
[1646573547401,54.81379164,87.995,87.885,114.1]
[1646573547704,54.81379164,87.995,87.91,17.0555]
[1646573547900,54.81379164,87.995,87.911,69.3442487]
[1646573548100,54.81379164,87.995,87.911,72.18038396]
[1646573548803,54.81379164,87.995,87.911,66.49638396]
[1646573550206,54.81379164,87.995,87.92,17.0638]
[1646573550407,54.81379164,87.995,87.912,2.83613526]
[1646573550602,62.62379164,87.995,87.911,63.6602487]
[1646573550806,64.15446576,87.995,87.911,63.6602487]
[1646573551001,1.53067412,87.992,87.911,63.6602487]
[1646573551401,62.62379164,87.995,87.911,63.6602487]
[1646573552003,1.53067412,87.994,87.912,5.684]
[1646573552424,1.53067412,87.994,87.912,8.52013526]
[1646573552611,64.15446576,87.995,87.912,5.684]
[1646573552808,64.15446576,87.995,87.913,2.83613526]
[1646573553006,1.53067412,87.994,87.913,2.83613526]
[1646573553206,1.53067412,87.994,87.914,5.684]
[1646573553407,62.62379164,87.995,87.914,5.684]
[1646573553408,64.15446576,87.995,87.914,5.684]
[1646573553605,62.62379164,87.995,87.914,5.684]
[1646573553807,62.62379164,87.995,87.915,2.83613526]
[1646573554007,62.62379164,87.995,87.916,5.684]
[1646573554908,62.62379164,87.995,87.913,24.9778]
[1646573555909,62.62379164,87.995,87.914,2.83613526]
[1646573556508,62.62379164,87.995,87.915,5.684]
[1646573557108,64.15446576,87.995,87.915,5.684]
[1646573557913,1.53067412,87.994,87.915,5.684]
[1646573558311,1.53067412,87.993,87.915,5.684]
[1646573558512,1.53067412,87.993,87.914,5.684]
[1646573558719,1.53067412,87.992,87.914,5.684]
[1646573558911,1.53067412,87.993,87.914,5.684]
[1646573559112,1.53067412,87.992,87.914,5.684]
[1646573559311,1.53067412,87.992,87.913,24.9778]
[1646573559512,1.53067412,87.987,87.913,24.9778]
[1646573560519,1.53067412,87.982,87.913,24.9778]
[1646573560713,1.53067412,87.982,87.881,26.81649817]
[1646573560714,1.53067412,87.977,87.888,2.83613526]
[1646573560916,17.0757,87.96,87.889,5.686]
[1646573561517,50.69265629,87.959,87.89,62.6830895]
[1646573561918,52.22333041,87.959,87.89,62.6830895]
[1646573562115,50.69265629,87.959,87.891,26.81649817]
[1646573562515,52.22333041,87.959,87.891,26.81649817]
[1646573562718,1.53067412,87.958,87.892,5.686]
[1646573563120,52.22333041,87.959,87.892,5.686]
[1646573563317,52.22333041,87.959,87.893,26.81649817]
[1646573563517,1.53067412,87.952,87.894,5.686]
[1646573563720,1.53067412,87.95,87.894,5.686]
[1646573563918,1.53067412,87.951,87.894,5.686]
[1646573564118,50.69265629,87.959,87.894,5.686]
[1646573564119,1.53067412,87.952,87.894,5.686]
[1646573564422,1.53067412,87.95,87.894,5.686]
[1646573565222,1.53067412,87.942,87.894,5.686]
[1646573565420,1.53067412,87.937,87.894,5.686]
[1646573565626,6.3,87.95,87.894,5.686]
[1646573566422,23.3772,87.95,87.894,5.686]
[1646573566620,6.22402685,87.949,87.894,5.686]
[1646573567445,114.1,87.939,87.861,23.1985]
[1646573567643,126.0035057,87.938,87.861,23.1985]
[1646573567843,0.54050029,87.934,87.861,23.1985]
[1646573568043,6.22402685,87.933,87.861,23.1985]
[1646573568443,9.32602579,87.933,87.861,23.1985]
[1646573568644,3.10199894,87.922,87.861,23.1985]
[1646573569245,54.33137302,87.919,87.861,23.1985]
[1646573569446,6.22402685,87.918,87.861,23.1985]
[1646573570647,17.0828,87.91,87.861,23.1985]
[1646573571046,54.33137302,87.919,87.861,23.1985]
[1646573571249,3.10199894,87.938,87.862,116.93613526]
[1646573571446,3.10199894,87.941,87.862,116.93613526]
[1646573571647,3.10199894,87.941,87.863,2.83613526]
[1646573571846,3.10199894,87.94,87.864,5.688]
[1646573572247,114.1,87.938,87.865,58.58834122]
[1646573572446,3.10199894,87.93,87.865,55.75220596]
[1646573572646,3.10199894,87.929,87.865,55.75220596]
[1646573573247,17.0816,87.92,87.865,55.75220596]
[1646573573449,51.8787411,87.919,87.865,55.75220596]
[1646573573647,6.22444277,87.918,87.865,55.75220596]
[1646573574049,6.22444277,87.918,87.861,23.1985]
[1646573575554,17.0832,87.91,87.861,23.1985]
[1646573575955,6.22444277,87.918,87.833,2.83613526]
[1646573575956,6.22444277,87.909,87.833,2.83613526]
[1646573576253,127.67269692,87.908,87.834,24.723]
[1646573576555,3.10199894,87.904,87.835,56.78415589]
[1646573576752,114.1,87.906,87.835,56.78415589]
[1646573576753,51.6632546,87.903,87.835,56.78415589]
[1646573576952,6.22444277,87.902,87.835,56.78415589]
[1646573577354,17.0858,87.9,87.835,56.78415589]
[1646573577955,6.2262249,87.899,87.835,56.78415589]
[1646573578354,51.6632546,87.903,87.84,17.0824]
[1646573578954,51.6632546,87.903,87.836,26.81649817]
[1646573580061,51.6632546,87.903,87.835,59.62029115]
[1646573580256,51.6632546,87.903,87.84,17.082]
[1646573580755,51.6632546,87.903,87.841,2.83613526]
[1646573580955,51.6632546,87.903,87.835,56.78415589]
[1646573581166,8.60458376,87.912,87.835,56.78415589]
[1646573581360,6.22565274,87.911,87.836,116.93613526]
[1646573581556,3.10199894,87.917,87.836,167.67316289]
[1646573581755,3.10199894,87.923,87.837,26.75666472]
[1646573581955,3.10199894,87.922,87.837,53.57316289]
[1646573582156,57.72604403,87.921,87.838,53.57316289]
[1646573582357,6.22565274,87.92,87.84,17.082]
[1646573582556,28.96265274,87.92,87.84,17.082]
[1646573582756,6.22565274,87.919,87.84,17.082]
[1646573582957,6.22565274,87.919,87.841,26.81649817]
[1646573583355,6.22565274,87.919,87.842,2.83613526]
[1646573584156,6.22565274,87.919,87.85,17.0801]
[1646573584356,6.22565274,87.919,87.851,23.081]
[1646573585559,9.32765168,87.919,87.851,23.081]
[1646573585759,6.22565274,87.919,87.851,23.081]
[1646573586860,3.10199894,87.918,87.851,23.081]
[1646573587060,6.22565274,87.919,87.851,23.081]
[1646573587259,6.22565274,87.917,87.851,23.081]
[1646573587463,6.22565274,87.919,87.852,143.75263343]
[1646573587661,57.72604403,87.921,87.852,143.75263343]
[1646573587960,57.72604403,87.921,87.854,114.1]
[1646573588360,57.72604403,87.921,87.856,114.1]
[1646573588761,57.72604403,87.921,87.86,17.0782]
[1646573589063,57.72604403,87.921,87.861,114.1]
[1646573589260,57.72604403,87.921,87.861,116.93613526]
[1646573589463,57.72604403,87.921,87.862,84.57796724]
[1646573589863,57.72604403,87.921,87.863,29.65263343]
[1646573590063,3.10199894,87.934,87.87,17.0743]
[1646573590262,3.10199894,87.934,87.871,138.1747]
[1646573590463,3.10199894,87.943,87.871,138.1747]
[1646573590664,3.10199894,87.949,87.873,114.1]
[1646573590862,3.10199894,87.952,87.873,114.1]
[1646573591063,53.32101871,87.952,87.875,114.1]
[1646573591265,6.22253873,87.951,87.875,114.1]
[1646573591471,6.22253873,87.951,87.877,114.1]
[1646573591666,50.21901977,87.952,87.877,114.1]
[1646573591865,50.21901977,87.952,87.881,114.1]
[1646573592267,50.21901977,87.952,87.883,114.1]
[1646573592668,3.10199894,87.968,87.885,182.82]
[1646573592867,3.10199894,87.968,87.884,53.57316289]
[1646573592868,3.10199894,87.975,87.887,182.82]
[1646573593068,3.10199894,87.982,87.887,182.82]
[1646573593268,3.10199894,87.981,87.889,182.82]
[1646573593473,3.10199894,87.983,87.889,182.82]
[1646573593667,53.78198684,87.982,87.901,59.8438637]
[1646573593871,6.22039002,87.981,87.902,23.4319]
[1646573594280,3.10199894,87.974,87.902,23.4319]
[1646573594472,3.10199894,87.969,87.902,23.4319]
[1646573594670,17.0752,87.95,87.88,17.0741]
[1646573594870,3.10199894,87.958,87.869,2.83613526]
[1646573595070,3.10199894,87.963,87.885,114.1]
[1646573595268,3.10199894,87.966,87.894,68.72]
[1646573595470,3.10199894,87.966,87.895,182.82]
[1646573595668,6.22039002,87.981,87.895,206.74052946]
[1646573595669,3.10199894,87.981,87.895,206.74052946]
[1646573595869,6.2202184,87.981,87.897,114.1]
[1646573596068,4.62471654,88.012,87.901,114.1]
[1646573596069,3.10199894,87.992,87.901,114.1]
[1646573596568,3.10199894,87.995,87.903,114.1]
[1646573596972,3.10199894,87.994,87.905,114.1]
[1646573597169,3.10199894,87.996,87.907,114.1]
[1646573597569,3.10199894,87.997,87.908,2.83613526]
[1646573597972,3.10199894,87.996,87.908,2.83613526]
[1646573598171,3.10199894,87.996,87.92,17.061]
[1646573598469,3.10199894,87.998,87.921,49.97468959]
[1646573598669,3.10199894,87.998,87.921,52.81082485]
[1646573599069,3.10199894,87.995,87.921,52.81082485]
[1646573599268,3.10199894,87.995,87.93,17.0627]
[1646573599477,3.10199894,87.998,87.93,17.0627]
[1646573601572,3.10199894,88.001,87.93,17.0627]
[1646573601770,3.10199894,88.002,87.93,17.0627]
[1646573602172,3.10199894,88.002,87.931,2.83613526]
[1646573602774,3.10199894,87.999,87.931,2.83613526]
[1646573602973,3.10199894,88.001,87.918,24.5406]
[1646573603172,3.10199894,87.994,87.918,24.5406]
[1646573603372,3.10199894,87.993,87.92,17.0661]
[1646573603572,3.10199894,87.999,87.92,17.0661]
[1646573603774,3.10199894,88.0,87.921,114.1]
[1646573603973,3.10199894,87.999,87.923,114.1]
[1646573604175,23.8578,88.015,87.923,114.1]
[1646573604176,3.10199894,88.007,87.923,114.1]
[1646573604374,3.10199894,88.011,87.925,114.1]
[1646573604578,3.10199894,88.012,87.925,114.1]
[1646573604778,6.21995245,88.014,87.931,114.1]
[1646573604981,46.62918161,88.013,87.931,114.1]
[1646573605176,46.62918161,88.013,87.932,2.83613526]
[1646573605376,6.21995245,88.012,87.932,2.83613526]
[1646573605576,6.21995245,88.012,87.934,114.1]
[1646573606078,6.21995245,88.012,87.95,17.0594]
[1646573606477,6.21995245,88.012,87.951,55.80319298]
[1646573607682,6.21995245,88.012,87.96,17.0585]
[1646573607978,3.10199894,88.041,87.96,17.0585]
[1646573608179,3.10199894,88.041,87.961,167.95623343]
[1646573608379,6.21738595,88.044,87.961,167.95623343]
[1646573608577,6.21738595,88.044,87.98,17.0517]
[1646573608796,6.21738595,88.044,87.981,114.1]
[1646573608996,55.14969644,88.043,87.983,114.1]
[1646573609197,6.21738595,88.042,87.982,63.43160241]
[1646573609701,6.21738595,88.042,87.982,60.59546715]
[1646573609905,3.10199894,88.051,87.99,17.0498]
[1646573610103,3.10199894,88.08,87.99,17.0498]
[1646573610297,3.10199894,88.087,87.992,114.1]
[1646573610499,3.10199894,88.094,87.992,114.1]
[1646573610698,3.10199894,88.094,87.993,2.83613526]
[1646573610899,50.8271313,88.093,88.0,17.0475]
[1646573611100,3.10199894,88.09,88.0,17.0475]
[1646573611303,3.10199894,88.087,88.001,2.83613526]
[1646573611500,3.10199894,88.083,88.001,2.83613526]
[1646573611700,3.10199894,88.083,87.994,24.6639]
[1646573611901,2.60199894,88.085,87.994,24.6639]
[1646573612101,17.0509,88.08,87.994,24.6639]
[1646573612304,4.89676311,88.079,87.995,114.1]
[1646573612500,6.21508959,88.079,87.995,116.93613526]
[1646573612701,6.21508959,88.079,87.994,24.6639]
[1646573612902,6.21508959,88.092,87.996,2.83613526]
[1646573613202,6.21509636,88.091,87.996,2.83613526]
[1646573613401,17.0479,88.09,88.0,17.0482]
[1646573613802,6.21509636,88.089,88.001,2.83613526]
[1646573614401,17.0482,88.09,88.001,2.83613526]
[1646573614602,4.11894602,88.086,87.994,24.6639]
[1646573614800,6.21509636,88.089,87.994,24.6639]
[1646573615005,6.21509636,88.092,87.994,24.6639]
[1646573615403,6.21509636,88.092,87.995,114.1]
[1646573615607,6.21509636,88.092,88.001,114.1]
[1646573615805,6.21509636,88.092,88.0,17.0485]
[1646573616006,5.20170217,88.091,88.0,17.0485]
[1646573616306,6.21509636,88.09,87.996,2.83613526]
[1646573616707,23.26299636,88.09,87.996,2.83613526]
[1646573617109,114.1,88.088,87.994,24.6639]
[1646573617307,0.37896207,88.087,87.994,24.6639]
[1646573617513,114.1,88.086,87.994,24.6639]
[1646573617708,114.1,88.059,87.95,17.0586]
[1646573617907,4.63202548,88.056,87.963,2.83613526]
[1646573618106,6.21509636,88.055,87.96,26.46116484]
[1646573618306,6.21509636,88.055,87.974,24.52719613]
[1646573618507,6.21509636,88.057,87.983,2.83613526]
[1646573618707,6.21509636,88.054,87.983,2.83613526]
[1646573619005,6.21509636,88.057,87.983,2.83613526]
[1646573619206,59.42909533,88.058,87.983,2.83613526]
[1646573619406,6.21657802,88.057,87.982,60.59546715]
[1646573620807,17.0559,88.05,87.982,60.59546715]
[1646573621210,59.42909533,88.058,87.982,60.59546715]
[1646573621609,6.21667096,88.057,87.982,60.59546715]
[1646573622210,5.37448125,88.055,87.982,60.59546715]
[1646573622413,114.1,88.053,87.96,2.83613526]
[1646573622614,114.1,88.051,87.95,2.83613526]
[1646573622811,114.1,88.049,87.95,2.83613526]
[1646573623010,114.1,88.047,87.936,2.83613526]
[1646573623211,17.066,88.02,87.936,2.83613526]
[1646573623412,49.95520735,88.019,87.939,26.46116484]
[1646573623813,49.95520735,88.019,87.94,2.83613526]
[1646573624617,6.21875285,88.018,87.94,2.83613526]
[1646573625119,6.21875285,88.018,87.94,19.89703526]
[1646573625519,6.21875285,88.018,87.941,2.83613526]
[1646573625919,119.71628545,88.009,87.937,60.74655256]
[1646573626116,114.1,88.007,87.937,60.74655256]
[1646573626520,114.1,88.005,87.937,60.74655256]
[1646573626716,56.9029,88.0,87.919,23.2042]
[1646573626917,118.39226844,87.999,87.919,23.2042]
[1646573627116,118.12525072,87.989,87.901,2.83613526]
[1646573627518,114.1,87.987,87.901,26.46116484]
[1646573627721,176.15444621,87.986,87.901,26.46116484]
[1646573628017,114.1,87.984,87.901,26.46116484]
[1646573628216,17.073,87.97,87.901,26.46116484]
[1646573628426,17.073,87.97,87.901,50.98836097]
[1646573628819,5.39648334,87.969,87.901,50.98836097]
[1646573629418,5.33870537,87.983,87.901,26.46116484]
[1646573629619,17.0701,87.98,87.902,2.83613526]
[1646573630023,17.0701,87.98,87.902,29.2973001]
[1646573630720,118.75695566,87.979,87.902,2.83613526]
[1646573630919,17.0767,87.96,87.896,49.28817078]
[1646573631119,114.1,87.959,87.889,26.46116484]
[1646573631319,4.89238639,87.958,87.876,2.83613526]
[1646573631720,56.9223,87.97,87.877,26.46116484]
[1646573631919,5.51198029,87.969,87.877,26.46116484]
[1646573632119,50.64085886,87.959,87.878,50.32376579]
[1646573633522,50.64085886,87.959,87.879,53.82449623]
[1646573633919,50.64085886,87.959,87.88,29.2973001]
[1646573634121,17.0755,87.95,87.88,29.2973001]
[1646573634320,17.0755,87.95,87.881,26.46116484]
[1646573635720,17.0755,87.95,87.88,2.83613526]
[1646573636221,17.0755,87.95,87.878,47.48763053]
[1646573637821,50.64085886,87.959,87.879,26.46116484]
[1646573638024,50.64085886,87.959,87.88,114.1]
[1646573638222,50.64085886,87.959,87.88,141.46333139]
[1646573638420,50.64085886,87.959,87.882,114.1]
[1646573638622,5.77445526,87.995,87.882,114.1]
[1646573638822,17.0673,87.99,87.891,114.1]
[1646573639221,5.77445526,87.995,87.893,114.1]
[1646573639427,5.29914004,88.009,87.893,114.1]
[1646573639624,56.42852213,87.977,87.895,182.82]
[1646573639827,56.42852213,87.977,87.895,114.1]
[1646573640021,56.42852213,87.977,87.897,114.1]
[1646573640222,56.42852213,87.977,87.901,114.1]
[1646573640823,56.42852213,87.977,87.902,2.83613526]
[1646573642726,17.0713,87.97,87.902,2.83613526]
[1646573642928,17.0713,87.97,87.898,26.46116484]
[1646573643731,17.0713,87.97,87.894,47.6301]
[1646573644728,17.0713,87.97,87.885,26.46116484]
[1646573646030,17.0713,87.97,87.886,5.686]
[1646573648333,17.0713,87.97,87.885,26.46116484]
[1646573648931,114.1,87.969,87.885,26.46116484]
[1646573649135,17.0796,87.95,87.87,2.83613526]
[1646573649334,114.1,87.947,87.86,5.686]
[1646573649533,0.38582064,87.946,87.86,5.686]
[1646573649735,0.40262242,87.944,87.843,2.83613526]
[1646573649966,0.40262242,87.944,87.844,5.687]
[1646573650137,114.1,87.943,87.844,5.687]
[1646573650335,5.19933095,87.94,87.845,26.46116484]
[1646573650537,17.081,87.93,87.846,119.788]
[1646573650738,22.7077,87.944,87.847,22.5504]
[1646573650939,22.7077,87.944,87.848,60.92794834]
[1646573651137,22.7077,87.944,87.848,87.38911318]
[1646573651339,22.7077,87.944,87.849,5.688]
[1646573651541,114.1,87.939,87.849,32.14916484]
[1646573651836,4.39602204,87.938,87.849,5.688]
[1646573652037,4.39602204,87.938,87.848,63.7640836]
[1646573652439,120.32384361,87.937,87.848,63.7640836]
[1646573652642,6.22384361,87.936,87.849,5.688]
[1646573652844,17.0832,87.92,87.849,5.688]
[1646573653042,52.89466985,87.919,87.849,5.688]
[1646573653245,52.89466985,87.919,87.85,29.2973001]
[1646573653446,52.89466985,87.919,87.851,5.689]
[1646573653644,52.89466985,87.919,87.851,8.52513526]
[1646573653844,52.89466985,87.919,87.852,2.83613526]
[1646573654044,52.89466985,87.919,87.853,5.689]
[1646573654446,52.89466985,87.919,87.854,2.83613526]
[1646573654646,52.89466985,87.919,87.854,29.2973001]
[1646573655245,52.89466985,87.919,87.853,5.689]
[1646573655446,6.22498834,87.918,87.853,5.689]
[1646573655647,17.0831,87.91,87.853,5.689]
[1646573655849,24.5433,87.932,87.853,5.689]
[1646573656048,6.22454976,87.931,87.854,29.2973001]
[1646573656447,6.22454976,87.931,87.855,26.46116484]
[1646573656848,66.58987111,87.93,87.855,26.46116484]
[1646573657347,6.22454976,87.929,87.853,5.689]
[1646573658368,17.0829,87.91,87.853,5.689]
[1646573659667,17.085,87.9,87.853,5.689]
[1646573659870,47.80679315,87.899,87.853,5.689]
[1646573663271,17.087,87.89,87.853,5.689]
[1646573663870,114.1,87.889,87.853,5.689]
[1646573664072,4.77524082,87.888,87.853,5.689]
[1646573664570,4.77524082,87.888,87.823,53.02225293]
[1646573664772,4.77524082,87.888,87.781,47.1266]
[1646573665073,5.48820717,87.878,87.804,26.46116484]
[1646573665871,5.48820717,87.878,87.805,58.33318725]
[1646573666072,17.0941,87.86,87.805,58.33318725]
[1646573666275,49.51655293,87.859,87.805,58.33318725]
[1646573667475,17.0947,87.85,87.791,26.46116484]
[1646573667674,4.04193152,87.848,87.781,47.1266]
[1646573668474,17.1014,87.83,87.782,55.39945623]
[1646573668674,62.75273645,87.829,87.782,55.39945623]
[1646573669176,62.75273645,87.829,87.782,54.89945623]
[1646573670076,17.1005,87.82,87.781,47.1266]
[1646573670675,17.1005,87.82,87.758,2.83613526]
[1646573671177,62.75273645,87.829,87.759,62.26960277]
[1646573671379,62.75273645,87.829,87.76,24.5886]
[1646573671575,62.75273645,87.829,87.76,75.80269623]
[1646573671776,62.75273645,87.829,87.761,48.37796097]
[1646573671976,62.75273645,87.829,87.761,51.21409623]
[1646573672177,62.75273645,87.829,87.762,26.05209817]
[1646573673179,17.1004,87.82,87.762,26.05209817]
[1646573673380,17.1004,87.82,87.76,24.5886]
[1646573674179,62.75273645,87.829,87.76,24.5886]
[1646573676081,17.1004,87.82,87.76,24.5886]
[1646573676281,17.1004,87.82,87.761,5.695]
[1646573676483,17.1004,87.82,87.761,31.74709817]
[1646573677682,17.1004,87.82,87.761,26.05209817]
[1646573679485,62.75273645,87.829,87.761,48.37796097]
[1646573679687,62.75273645,87.829,87.762,2.83613526]
[1646573679886,62.75273645,87.829,87.762,28.88823343]
[1646573680087,62.75273645,87.829,87.763,28.0208628]
[1646573680288,62.75273645,87.829,87.763,56.90909623]
[1646573680486,62.75273645,87.829,87.764,48.37796097]
[1646573680688,62.75273645,87.829,87.765,119.794]
[1646573680888,62.75273645,87.829,87.77,17.0942]
[1646573681288,62.75273645,87.829,87.771,2.83613526]
[1646573681491,62.75273645,87.829,87.771,28.88823343]
[1646573681888,62.75273645,87.829,87.773,49.32635735]
[1646573682088,62.75273645,87.829,87.774,5.694]
[1646573683792,62.75273645,87.829,87.773,49.32635735]
[1646573685612,62.75273645,87.829,87.772,2.83613526]
[1646573685798,62.75273645,87.829,87.761,5.694]
[1646573686608,62.75273645,87.829,87.762,52.18687733]
[1646573687208,62.75273645,87.829,87.763,28.88823343]
[1646573687707,62.75273645,87.829,87.764,28.88823343]
[1646573687908,62.75273645,87.829,87.765,5.694]
[1646573688106,62.75273645,87.829,87.765,34.58223343]
[1646573688406,62.75273645,87.829,87.766,28.88823343]
[1646573688605,1.54423337,87.844,87.771,114.1]
[1646573688806,1.54423337,87.85,87.773,114.1]
[1646573689006,1.54423337,87.854,87.773,114.1]
[1646573689208,1.54423337,87.854,87.774,2.83613526]
[1646573689407,1.54423337,87.854,87.775,119.792]
[1646573689608,50.86462008,87.853,87.777,114.1]
[1646573689807,1.54423337,87.85,87.778,5.692]
[1646573690108,1.54423337,87.852,87.781,114.1]
[1646573690307,50.86462008,87.853,87.781,114.1]
[1646573690509,50.86462008,87.853,87.782,2.83613526]
[1646573690707,50.86462008,87.853,87.783,5.692]
[1646573690908,50.86462008,87.853,87.784,23.714]
[1646573691109,50.86462008,87.853,87.784,26.55013526]
[1646573691329,50.86462008,87.853,87.785,2.83613526]
[1646573692330,17.0947,87.85,87.784,23.714]
[1646573692531,1.54423337,87.832,87.772,2.83613526]
[1646573692735,1.54423337,87.824,87.771,28.3037]
[1646573693332,45.92826825,87.809,87.771,22.6117]
[1646573693535,45.92826825,87.809,87.756,53.92753584]
[1646573695538,45.92826825,87.809,87.757,22.3258628]
[1646573695741,45.92826825,87.809,87.757,163.22943105]
[1646573695933,45.92826825,87.809,87.758,2.83613526]
[1646573696134,45.92826825,87.809,87.758,49.12943105]
[1646573696335,45.92826825,87.809,87.76,17.0975]